[Event "Live Chess"]
[Site "Chess.com"]
[Date "2024.06.02"]
[Round "-"]
[White "Bradfield133"]
[Black "WorcesterYork"]
[Result "0-1"]
[WhiteElo "1853"]
[BlackElo "2449"]
[TimeControl "300"]
[EndTime "6:30:37 PDT"]
[Termination "WorcesterYork won by resignation"]

1. c4 {[%clk 0:04:57.3]} 1... c5 {[%clk 0:04:56]} 2. g3 {[%clk 0:04:56.1]} 2...
Nc6 {[%clk 0:04:55.4]} 3. Bg2 {[%clk 0:04:55.2]} 3... g6 {[%clk 0:04:55.1]} 4.
Nc3 {[%clk 0:04:54.3]} 4... Bg7 {[%clk 0:04:54.7]} 5. a3 {[%clk 0:04:52]} 5...
d6 {[%clk 0:04:52.9]} 6. Rb1 {[%clk 0:04:50.7]} 6... a5 {[%clk 0:04:52]} 7. e4
{[%clk 0:04:46.2]} 7... h5 {[%clk 0:04:48.2]} 8. Nge2 {[%clk 0:04:46.1]} 8... h4
{[%clk 0:04:47.4]} 9. Nf4 {[%clk 0:04:42.1]} 9... h3 {[%clk 0:04:45.9]} 10. Bf3
{[%clk 0:04:38.2]} 10... Nd4 {[%clk 0:04:43]} 11. Bg4 {[%clk 0:04:28.5]} 11...
Bxg4 {[%clk 0:04:35.8]} 12. Qxg4 {[%clk 0:04:26.1]} 12... Nc2+ {[%clk
0:04:35.4]} 13. Kd1 {[%clk 0:04:18.9]} 13... Nf6 {[%clk 0:04:35.3]} 14. Qe2
{[%clk 0:04:01.1]} 14... Nd4 {[%clk 0:04:35.2]} 15. Qf1 {[%clk 0:03:59.2]} 15...
Qd7 {[%clk 0:04:28.2]} 16. Ncd5 {[%clk 0:03:49.9]} 16... Nxd5 {[%clk 0:04:18.3]}
17. Nxd5 {[%clk 0:03:46.6]} 17... Qa4+ {[%clk 0:04:11.2]} 18. b3 {[%clk
0:03:23.4]} 18... Qc6 {[%clk 0:04:10.1]} 19. Nf4 {[%clk 0:03:15.8]} 19... Qd7
{[%clk 0:04:08.1]} 20. d3 {[%clk 0:03:08.9]} 20... Qg4+ {[%clk 0:04:06.5]} 21.
Kd2 {[%clk 0:03:00.6]} 21... b5 {[%clk 0:04:00.6]} 22. Qd1 {[%clk 0:02:43.3]}
22... Qd7 {[%clk 0:03:46.7]} 23. f3 {[%clk 0:02:28.4]} 23... a4 {[%clk
0:03:08.6]} 24. bxa4 {[%clk 0:02:18]} 24... bxa4 {[%clk 0:03:07.7]} 25. Ke1
{[%clk 0:02:06.4]} 25... O-O {[%clk 0:03:04.5]} 26. Kf2 {[%clk 0:02:03.4]} 26...
Rfb8 {[%clk 0:03:02.7]} 27. Bd2 {[%clk 0:01:55.2]} 27... Rb3 {[%clk 0:03:00.9]}
28. Qf1 {[%clk 0:01:36.8]} 28... Rab8 {[%clk 0:02:51.8]} 29. Re1 {[%clk
0:01:20]} 29... Rb2 {[%clk 0:02:50.1]} 30. Rd1 {[%clk 0:01:13.4]} 30... Nb3
{[%clk 0:02:48.2]} 31. Ke1 {[%clk 0:01:03.3]} 31... Nxd2 {[%clk 0:02:45.3]} 32.
Rxd2 {[%clk 0:01:01.9]} 32... Bc3 {[%clk 0:02:44.3]} 0-1

[Event "Live Chess"]
[Site "Chess.com"]
[Date "2024.06.02"]
[Round "-"]
[White "vincents82"]
[Black "missedJariChance"]
[Result "1-0"]
[WhiteElo "1982"]
[BlackElo "1387"]
[TimeControl "300"]
[EndTime "6:30:38 PDT"]
[Termination "vincents82 won by checkmate"]

1. e4 {[%clk 0:04:52.7]} 1... c5 {[%clk 0:04:58.5]} 2. Nf3 {[%clk 0:04:51.1]}
2... e6 {[%clk 0:04:57.2]} 3. d4 {[%clk 0:04:49.9]} 3... cxd4 {[%clk 0:04:55.9]}
4. Nxd4 {[%clk 0:04:49.3]} 4... Nc6 {[%clk 0:04:54.7]} 5. Nc3 {[%clk 0:04:48.4]}
5... a6 {[%clk 0:04:53.5]} 6. Be3 {[%clk 0:04:47]} 6... Qc7 {[%clk 0:04:52.3]}
7. Be2 {[%clk 0:04:45.6]} 7... Nf6 {[%clk 0:04:48.9]} 8. Qd2 {[%clk 0:04:44]}
8... Be7 {[%clk 0:04:46]} 9. O-O-O {[%clk 0:04:37.4]} 9... O-O {[%clk
0:04:39.9]} 10. Nxc6 {[%clk 0:04:35.1]} 10... bxc6 {[%clk 0:04:30.1]} 11. h4
{[%clk 0:04:33.4]} 11... Bb4 {[%clk 0:04:23.3]} 12. h5 {[%clk 0:04:31]} 12...
Nxe4 {[%clk 0:04:21]} 13. Qd4 {[%clk 0:04:25.8]} 13... Bxc3 {[%clk 0:04:12]} 14.
Qxe4 {[%clk 0:04:19.4]} 14... Ba5 {[%clk 0:04:05.8]} 15. h6 {[%clk 0:04:13.6]}
15... f5 {[%clk 0:03:53.4]} 16. Qd4 {[%clk 0:04:00.6]} 16... e5 {[%clk
0:03:45.4]} 17. Bc4+ {[%clk 0:03:56.2]} 17... Kh8 {[%clk 0:03:43.3]} 18. hxg7+
{[%clk 0:03:53.3]} 18... Kxg7 {[%clk 0:03:39.9]} 19. Qh4 {[%clk 0:03:45.4]}
19... Rh8 {[%clk 0:03:29.2]} 20. Qe7+ {[%clk 0:03:41.8]} 20... Kg6 {[%clk
0:03:11.3]} 21. Qf7# {[%clk 0:03:40.8]} 1-0

[Event "Live Chess"]
[Site "Chess.com"]
[Date "2024.06.02"]
[Round "-"]
[White "grillage"]
[Black "jimwad"]
[Result "1-0"]
[WhiteElo "1864"]
[BlackElo "1300"]
[TimeControl "300"]
[EndTime "6:30:43 PDT"]
[Termination "grillage won by resignation"]

1. d4 {[%clk 0:04:56.4]} 1... d5 {[%clk 0:04:58.8]} 2. Nf3 {[%clk 0:04:53.7]}
2... Nf6 {[%clk 0:04:57.2]} 3. c4 {[%clk 0:04:51.9]} 3... c6 {[%clk 0:04:55.6]}
4. Qc2 {[%clk 0:04:50.3]} 4... g6 {[%clk 0:04:46.5]} 5. Bg5 {[%clk 0:04:42.8]}
5... Bf5 {[%clk 0:04:44.9]} 6. Qb3 {[%clk 0:04:41.8]} 6... Qc7 {[%clk
0:04:36.7]} 7. Nc3 {[%clk 0:04:16.8]} 7... Bg7 {[%clk 0:04:34.8]} 8. cxd5 {[%clk
0:04:13.1]} 8... Nxd5 {[%clk 0:04:32.8]} 9. Nxd5 {[%clk 0:04:04.1]} 9... cxd5
{[%clk 0:04:28.6]} 10. Qxd5 {[%clk 0:03:59.7]} 10... O-O {[%clk 0:04:22.8]} 11.
e3 {[%clk 0:03:51.2]} 11... Rd8 {[%clk 0:04:16]} 12. Qb3 {[%clk 0:03:48.3]}
12... Nc6 {[%clk 0:04:10.4]} 13. Bc4 {[%clk 0:03:44.5]} 13... Na5 {[%clk
0:04:03.4]} 14. Bxf7+ {[%clk 0:03:43.1]} 14... Kf8 {[%clk 0:03:57]} 15. Qa3
{[%clk 0:03:18.1]} 15... Kxf7 {[%clk 0:03:53.5]} 16. O-O {[%clk 0:03:15.4]}
16... Bf6 {[%clk 0:03:51.6]} 17. Bf4 {[%clk 0:03:04.3]} 17... e5 {[%clk
0:03:38.5]} 18. Rac1 {[%clk 0:02:57]} 18... Qe7 {[%clk 0:03:28.4]} 19. Qxa5
{[%clk 0:02:23.3]} 19... exf4 {[%clk 0:03:22.3]} 20. exf4 {[%clk 0:02:11.2]}
20... b6 {[%clk 0:03:15.9]} 21. Qa4 {[%clk 0:01:58]} 21... Be4 {[%clk
0:02:59.5]} 22. Rfe1 {[%clk 0:01:53.6]} 22... Qb7 {[%clk 0:02:47.8]} 23. Ne5+
{[%clk 0:01:31]} 23... Bxe5 {[%clk 0:02:46.5]} 24. dxe5 {[%clk 0:01:30.3]} 24...
Bxg2 {[%clk 0:02:40.7]} 25. Qc4+ {[%clk 0:01:21.5]} 25... Bd5 {[%clk 0:02:36.2]}
26. Qe2 {[%clk 0:01:05.8]} 26... Bxa2 {[%clk 0:02:11.4]} 27. e6+ {[%clk
0:01:01.9]} 27... Ke7 {[%clk 0:01:56.4]} 28. Qe5 {[%clk 0:01:00.3]} 28... Qd5
{[%clk 0:01:05.2]} 29. Rc7+ {[%clk 0:00:49.6]} 29... Rd7 {[%clk 0:00:39]} 30.
Rxd7+ {[%clk 0:00:43.3]} 30... Qxd7 {[%clk 0:00:36.3]} 31. exd7+ {[%clk
0:00:41.9]} 1-0

[Event "Live Chess"]
[Site "Chess.com"]
[Date "2024.06.02"]
[Round "-"]
[White "NottheBishopSacrifice"]
[Black "mrsmarple1968"]
[Result "1-0"]
[WhiteElo "2323"]
[BlackElo "1729"]
[TimeControl "300"]
[EndTime "6:30:52 PDT"]
[Termination "NottheBishopSacrifice won by resignation"]

1. d4 {[%clk 0:04:58.1]} 1... d5 {[%clk 0:04:57.7]} 2. Nf3 {[%clk 0:04:57.5]}
2... Nf6 {[%clk 0:04:55]} 3. c4 {[%clk 0:04:57.1]} 3... e6 {[%clk 0:04:53.2]} 4.
Nc3 {[%clk 0:04:55.8]} 4... c6 {[%clk 0:04:50.2]} 5. g3 {[%clk 0:04:54.2]} 5...
Be7 {[%clk 0:04:46.1]} 6. Bg2 {[%clk 0:04:52.5]} 6... O-O {[%clk 0:04:44.4]} 7.
O-O {[%clk 0:04:51.8]} 7... Nbd7 {[%clk 0:04:43]} 8. Qd3 {[%clk 0:04:50]} 8...
Re8 {[%clk 0:04:40]} 9. e4 {[%clk 0:04:48.4]} 9... dxe4 {[%clk 0:04:34.1]} 10.
Nxe4 {[%clk 0:04:48.3]} 10... b6 {[%clk 0:04:30.1]} 11. Bf4 {[%clk 0:04:45]}
11... Bb7 {[%clk 0:04:27.3]} 12. Nd6 {[%clk 0:04:41.6]} 12... Bxd6 {[%clk
0:04:22.7]} 13. Bxd6 {[%clk 0:04:41.5]} 13... Nf8 {[%clk 0:04:06.7]} 14. c5
{[%clk 0:04:36.3]} 14... Nd5 {[%clk 0:03:55.6]} 15. Qc2 {[%clk 0:04:30.8]} 15...
Ng6 {[%clk 0:03:37.5]} 16. a3 {[%clk 0:04:24.4]} 16... a5 {[%clk 0:03:30.8]} 17.
Ne5 {[%clk 0:04:19.5]} 17... Nge7 {[%clk 0:03:12.6]} 18. Nc4 {[%clk 0:04:16]}
18... f6 {[%clk 0:02:59.2]} 19. Rfe1 {[%clk 0:04:13.8]} 19... Qd7 {[%clk
0:02:53.5]} 20. cxb6 {[%clk 0:04:09.4]} 20... Nxb6 {[%clk 0:02:50.7]} 21. Nxb6
{[%clk 0:04:07.3]} 21... Qxd6 {[%clk 0:02:49.7]} 22. Nxa8 {[%clk 0:04:06.3]}
22... Bxa8 {[%clk 0:02:48.5]} 23. Qc5 {[%clk 0:04:04]} 23... Rd8 {[%clk
0:02:29.2]} 24. Qxa5 {[%clk 0:03:57.7]} 24... Bb7 {[%clk 0:02:26.6]} 25. Rxe6
{[%clk 0:03:52.5]} 25... Qxe6 {[%clk 0:02:22.4]} 26. Qxd8+ {[%clk 0:03:50.5]}
26... Kf7 {[%clk 0:02:20.5]} 27. Qb6 {[%clk 0:03:46.2]} 27... Ba8 {[%clk
0:02:11.9]} 28. Qb8 {[%clk 0:03:43.6]} 28... Qc8 {[%clk 0:02:09.4]} 29. Qb3+
{[%clk 0:03:39.7]} 29... Kf8 {[%clk 0:02:06.7]} 30. a4 {[%clk 0:03:38.3]} 30...
Qd7 {[%clk 0:01:57]} 31. a5 {[%clk 0:03:34.1]} 31... Qb7 {[%clk 0:01:53.8]} 32.
Qxb7 {[%clk 0:03:31.7]} 32... Bxb7 {[%clk 0:01:52.7]} 33. a6 {[%clk 0:03:31.4]}
33... Ba8 {[%clk 0:01:50.4]} 34. a7 {[%clk 0:03:31]} 34... Nc8 {[%clk
0:01:45.5]} 35. Ra3 {[%clk 0:03:29.7]} 35... Nb6 {[%clk 0:01:42.7]} 36. Rb3
{[%clk 0:03:28.1]} 36... Nd7 {[%clk 0:01:41.6]} 37. Rb8+ {[%clk 0:03:26.3]} 1-0

[Event "Live Chess"]
[Site "Chess.com"]
[Date "2024.06.02"]
[Round "-"]
[White "Frankie_Badacsonyi"]
[Black "elephantgerrald"]
[Result "1-0"]
[WhiteElo "2375"]
[BlackElo "871"]
[TimeControl "300"]
[EndTime "6:30:53 PDT"]
[Termination "Frankie_Badacsonyi won by checkmate"]

1. Nf3 {[%clk 0:04:57.6]} 1... d5 {[%clk 0:04:42.5]} 2. e3 {[%clk 0:04:55.3]}
2... Bg4 {[%clk 0:04:40.8]} 3. b3 {[%clk 0:04:54.6]} 3... Nc6 {[%clk 0:04:39.2]}
4. Bb2 {[%clk 0:04:52.9]} 4... d4 {[%clk 0:04:34.8]} 5. h3 {[%clk 0:04:50]} 5...
dxe3 {[%clk 0:04:30.3]} 6. hxg4 {[%clk 0:04:47.6]} 6... exf2+ {[%clk 0:04:29.3]}
7. Kxf2 {[%clk 0:04:46.4]} 7... Nf6 {[%clk 0:04:23.8]} 8. g5 {[%clk 0:04:42.2]}
8... Ng4+ {[%clk 0:04:21]} 9. Kg1 {[%clk 0:04:40.8]} 9... e6 {[%clk 0:04:18.1]}
10. Rh4 {[%clk 0:04:36.6]} 10... Bc5+ {[%clk 0:04:15.1]} 11. d4 {[%clk
0:04:34.1]} 11... Bxd4+ {[%clk 0:04:05.8]} 12. Bxd4 {[%clk 0:04:31.6]} 12...
Qxd4+ {[%clk 0:04:03.2]} 13. Qxd4 {[%clk 0:04:30.6]} 13... Nxd4 {[%clk
0:04:01.3]} 14. Nxd4 {[%clk 0:04:30.2]} 14... Ne3 {[%clk 0:03:55.5]} 15. Nc3
{[%clk 0:04:25.4]} 15... O-O {[%clk 0:03:42.7]} 16. Re1 {[%clk 0:04:22.4]} 16...
Nxf1 {[%clk 0:03:17]} 17. Kxf1 {[%clk 0:04:22.3]} 17... c5 {[%clk 0:03:14.8]}
18. Ndb5 {[%clk 0:04:15.3]} 18... a6 {[%clk 0:02:54]} 19. Nd6 {[%clk 0:04:13.3]}
19... b5 {[%clk 0:02:47.5]} 20. Re3 {[%clk 0:04:10.9]} 20... b4 {[%clk
0:02:46.4]} 21. Nce4 {[%clk 0:04:10]} 21... f5 {[%clk 0:02:07.3]} 22. gxf6
{[%clk 0:04:05.9]} 22... gxf6 {[%clk 0:02:05.5]} 23. Rg3+ {[%clk 0:04:04.5]}
23... Kh8 {[%clk 0:01:58.7]} 24. Rgh3 {[%clk 0:04:04.4]} 24... f5 {[%clk
0:01:53.8]} 25. Rxh7+ {[%clk 0:04:01.5]} 25... Kg8 {[%clk 0:01:12.5]} 26. Nxc5
{[%clk 0:04:01.4]} 26... f4 {[%clk 0:01:06.7]} 27. Nxe6 {[%clk 0:03:57.4]} 27...
Rfb8 {[%clk 0:01:03.2]} 28. Rh8# {[%clk 0:03:54.9]} 1-0

[Event "Live Chess"]
[Site "Chess.com"]
[Date "2024.06.02"]
[Round "-"]
[White "dmitro74"]
[Black "GerardATHart"]
[Result "1-0"]
[WhiteElo "1734"]
[BlackElo "1361"]
[TimeControl "300"]
[EndTime "6:30:58 PDT"]
[Termination "dmitro74 won on time"]

1. d4 {[%clk 0:04:57.5]} 1... f5 {[%clk 0:04:58]} 2. c4 {[%clk 0:04:56]} 2...
Nf6 {[%clk 0:04:55.9]} 3. Nc3 {[%clk 0:04:53.3]} 3... g6 {[%clk 0:04:54.2]} 4.
Nf3 {[%clk 0:04:52]} 4... Bg7 {[%clk 0:04:50.9]} 5. e3 {[%clk 0:04:49.5]} 5...
O-O {[%clk 0:04:47.9]} 6. Bd3 {[%clk 0:04:45.4]} 6... d6 {[%clk 0:04:44.6]} 7.
O-O {[%clk 0:04:42.2]} 7... Nc6 {[%clk 0:04:42.1]} 8. a3 {[%clk 0:04:31.8]} 8...
e5 {[%clk 0:04:39]} 9. d5 {[%clk 0:04:17.3]} 9... e4 {[%clk 0:04:23.2]} 10. dxc6
{[%clk 0:04:14.9]} 10... exd3 {[%clk 0:04:20.1]} 11. cxb7 {[%clk 0:04:08.8]}
11... Bxb7 {[%clk 0:04:18.2]} 12. Qxd3 {[%clk 0:04:01.1]} 12... Ne4 {[%clk
0:04:11.2]} 13. Nd4 {[%clk 0:03:55.8]} 13... Qe7 {[%clk 0:04:01.1]} 14. Bd2
{[%clk 0:03:47]} 14... Nc5 {[%clk 0:03:58.4]} 15. Qc2 {[%clk 0:03:38.8]} 15...
Be5 {[%clk 0:03:33.2]} 16. f4 {[%clk 0:03:14]} 16... Bf6 {[%clk 0:03:30.3]} 17.
Nf3 {[%clk 0:03:12.2]} 17... Ne4 {[%clk 0:03:20.3]} 18. Nd5 {[%clk 0:02:59.7]}
18... Bxd5 {[%clk 0:03:06.1]} 19. cxd5 {[%clk 0:02:57.9]} 19... Rab8 {[%clk
0:02:57.8]} 20. Rab1 {[%clk 0:02:50.7]} 20... Nc5 {[%clk 0:02:11.7]} 21. Bc3
{[%clk 0:02:40.5]} 21... Bxc3 {[%clk 0:02:02.4]} 22. bxc3 {[%clk 0:02:32.9]}
22... Qxe3+ {[%clk 0:01:56.2]} 23. Kh1 {[%clk 0:02:29.6]} 23... Qxf4 {[%clk
0:01:44]} 24. Nd4 {[%clk 0:02:28]} 24... Qh4 {[%clk 0:01:36.1]} 25. Nc6 {[%clk
0:02:10.5]} 25... Rb6 {[%clk 0:01:29.9]} 26. Nxa7 {[%clk 0:01:58.4]} 26... Ra8
{[%clk 0:01:27.8]} 27. Nb5 {[%clk 0:01:48.9]} 27... Ne4 {[%clk 0:01:22.6]} 28.
c4 {[%clk 0:01:43.6]} 28... Ng3+ {[%clk 0:01:18.3]} 29. Kg1 {[%clk 0:01:38]}
29... Nxf1 {[%clk 0:01:16.5]} 30. Rxf1 {[%clk 0:01:34.7]} 30... Rf8 {[%clk
0:01:07.1]} 31. Qe2 {[%clk 0:01:23]} 31... c6 {[%clk 0:00:57.3]} 32. Qe6+ {[%clk
0:01:16.6]} 32... Kg7 {[%clk 0:00:46]} 33. Qxd6 {[%clk 0:01:14.6]} 33... cxb5
{[%clk 0:00:41.4]} 34. Qxb6 {[%clk 0:01:12.7]} 34... bxc4 {[%clk 0:00:39.6]} 35.
d6 {[%clk 0:01:06.1]} 35... c3 {[%clk 0:00:35.6]} 36. Qc7+ {[%clk 0:01:03.4]}
36... Rf7 {[%clk 0:00:33.8]} 37. Qxc3+ {[%clk 0:00:59.7]} 37... Kf8 {[%clk
0:00:28.4]} 38. Qc8+ {[%clk 0:00:55.5]} 38... Kg7 {[%clk 0:00:27]} 39. d7 {[%clk
0:00:54]} 39... Rf8 {[%clk 0:00:24]} 40. Qc3+ {[%clk 0:00:47.3]} 40... Qf6
{[%clk 0:00:18.7]} 41. Qxf6+ {[%clk 0:00:44.1]} 41... Kxf6 {[%clk 0:00:17.2]}
42. Rd1 {[%clk 0:00:42.9]} 42... Rd8 {[%clk 0:00:15.5]} 43. a4 {[%clk
0:00:41.7]} 43... Ke7 {[%clk 0:00:14.4]} 44. a5 {[%clk 0:00:40.1]} 44... Rxd7
{[%clk 0:00:13.9]} 45. Re1+ {[%clk 0:00:35.9]} 45... Kd6 {[%clk 0:00:10.6]} 46.
Rd1+ {[%clk 0:00:34.2]} 46... Kc6 {[%clk 0:00:09.6]} 47. Rxd7 {[%clk 0:00:33.3]}
47... Kxd7 {[%clk 0:00:09.3]} 48. Kf2 {[%clk 0:00:32.4]} 48... Kc7 {[%clk
0:00:08.9]} 49. Ke3 {[%clk 0:00:31.3]} 49... Kb7 {[%clk 0:00:08.7]} 50. Kf4
{[%clk 0:00:30.1]} 50... Ka6 {[%clk 0:00:08.6]} 51. Kg5 {[%clk 0:00:29.1]} 51...
Kxa5 {[%clk 0:00:08.3]} 52. Kh6 {[%clk 0:00:28.4]} 52... f4 {[%clk 0:00:06.3]}
53. Kxh7 {[%clk 0:00:27]} 53... g5 {[%clk 0:00:05.4]} 54. Kh6 {[%clk 0:00:25.8]}
54... g4 {[%clk 0:00:04.4]} 55. Kg5 {[%clk 0:00:18.1]} 55... f3 {[%clk
0:00:03.4]} 56. gxf3 {[%clk 0:00:16.9]} 56... gxf3 {[%clk 0:00:02.2]} 57. h4
{[%clk 0:00:16.5]} 57... f2 {[%clk 0:00:01.4]} 58. h5 {[%clk 0:00:16.1]} 58...
f1=Q {[%clk 0:00:00.6]} 59. h6 {[%clk 0:00:15.6]} 1-0

[Event "Live Chess"]
[Site "Chess.com"]
[Date "2024.06.02"]
[Round "-"]
[White "Step-S"]
[Black "beltmanjb"]
[Result "1-0"]
[WhiteElo "1341"]
[BlackElo "1683"]
[TimeControl "300"]
[EndTime "6:31:04 PDT"]
[Termination "Step-S won by checkmate"]

1. e4 {[%clk 0:04:56.8]} 1... c5 {[%clk 0:04:59.1]} 2. d4 {[%clk 0:04:55.4]}
2... cxd4 {[%clk 0:04:57.5]} 3. f4 {[%clk 0:04:54.4]} 3... Nc6 {[%clk
0:04:51.6]} 4. Nf3 {[%clk 0:04:53.6]} 4... d5 {[%clk 0:04:42.5]} 5. Bd3 {[%clk
0:04:50.3]} 5... Bg4 {[%clk 0:04:33.7]} 6. O-O {[%clk 0:04:40.1]} 6... e5 {[%clk
0:04:21]} 7. Qe1 {[%clk 0:04:26.4]} 7... Nf6 {[%clk 0:03:51.4]} 8. fxe5 {[%clk
0:04:12.4]} 8... Nxe4 {[%clk 0:03:33.2]} 9. Bxe4 {[%clk 0:03:54.5]} 9... dxe4
{[%clk 0:03:30.9]} 10. Qxe4 {[%clk 0:03:51.9]} 10... Bxf3 {[%clk 0:03:25.1]} 11.
Qxf3 {[%clk 0:03:45.4]} 11... Bc5 {[%clk 0:03:23.2]} 12. Qxf7# {[%clk 0:03:40]}
1-0

[Event "Live Chess"]
[Site "Chess.com"]
[Date "2024.06.02"]
[Round "-"]
[White "matt1979"]
[Black "RichardABates"]
[Result "0-1"]
[WhiteElo "1405"]
[BlackElo "2356"]
[TimeControl "300"]
[EndTime "6:31:08 PDT"]
[Termination "RichardABates won by checkmate"]

1. f4 {[%clk 0:04:58.3]} 1... e5 {[%clk 0:04:57.2]} 2. fxe5 {[%clk 0:04:57.2]}
2... d6 {[%clk 0:04:56.1]} 3. exd6 {[%clk 0:04:56.5]} 3... Bxd6 {[%clk
0:04:54.1]} 4. Nf3 {[%clk 0:04:55.8]} 4... Bg4 {[%clk 0:04:52.5]} 5. e3 {[%clk
0:04:53]} 5... Nc6 {[%clk 0:04:50.9]} 6. Bb5 {[%clk 0:04:51.3]} 6... Ne7 {[%clk
0:04:44]} 7. O-O {[%clk 0:04:49.7]} 7... O-O {[%clk 0:04:42.5]} 8. h3 {[%clk
0:04:42.4]} 8... Bh5 {[%clk 0:04:37.6]} 9. Qe1 {[%clk 0:04:33.2]} 9... Bg6
{[%clk 0:04:19.6]} 10. d3 {[%clk 0:04:28]} 10... Nf5 {[%clk 0:04:17.5]} 11. Bxc6
{[%clk 0:03:52.1]} 11... bxc6 {[%clk 0:04:15.7]} 12. d4 {[%clk 0:03:41.2]} 12...
Re8 {[%clk 0:04:12.7]} 13. Bd2 {[%clk 0:03:34.5]} 13... Bg3 {[%clk 0:04:04.7]}
14. Qe2 {[%clk 0:03:31]} 14... Nxd4 {[%clk 0:03:53.5]} 15. Nxd4 {[%clk
0:03:27.3]} 15... Qxd4 {[%clk 0:03:51.2]} 16. exd4 {[%clk 0:03:19.8]} 16... Rxe2
{[%clk 0:03:49.1]} 17. Rf3 {[%clk 0:02:54.1]} 17... Bd6 {[%clk 0:03:37.6]} 18.
Bf4 {[%clk 0:02:41.2]} 18... Be4 {[%clk 0:03:24.2]} 19. Re3 {[%clk 0:02:23.7]}
19... Rxg2+ {[%clk 0:03:17.3]} 20. Kf1 {[%clk 0:02:22.7]} 20... f5 {[%clk
0:01:30.2]} 21. Bxd6 {[%clk 0:02:14.4]} 21... Rxc2 {[%clk 0:01:27.4]} 22. Ba3
{[%clk 0:01:55]} 22... Re8 {[%clk 0:01:17.8]} 23. Rg3 {[%clk 0:01:46.1]} 23...
f4 {[%clk 0:01:14.2]} 24. Rg4 {[%clk 0:01:35.2]} 24... Bd3+ {[%clk 0:01:04.6]}
25. Kg1 {[%clk 0:01:23]} 25... Re1# {[%clk 0:01:02.7]} 0-1

[Event "Live Chess"]
[Site "Chess.com"]
[Date "2024.06.02"]
[Round "-"]
[White "McFim"]
[Black "McCarthyStone"]
[Result "1-0"]
[WhiteElo "1781"]
[BlackElo "2471"]
[TimeControl "300"]
[EndTime "6:31:10 PDT"]
[Termination "McFim won by resignation"]

1. e4 {[%clk 0:04:54.3]} 1... e5 {[%clk 0:04:58.1]} 2. Nf3 {[%clk 0:04:52.9]}
2... d6 {[%clk 0:04:56.6]} 3. d4 {[%clk 0:04:51.6]} 3... exd4 {[%clk 0:04:56.5]}
4. Nxd4 {[%clk 0:04:51.4]} 4... Nf6 {[%clk 0:04:55.4]} 5. Nc3 {[%clk 0:04:50.3]}
5... g6 {[%clk 0:04:53.5]} 6. f3 {[%clk 0:04:47.3]} 6... Bg7 {[%clk 0:04:52.6]}
7. Be3 {[%clk 0:04:46.8]} 7... O-O {[%clk 0:04:51.9]} 8. Qd2 {[%clk 0:04:45.8]}
8... Nc6 {[%clk 0:04:49.7]} 9. O-O-O {[%clk 0:04:44.3]} 9... Nxd4 {[%clk
0:04:49.1]} 10. Bxd4 {[%clk 0:04:43.4]} 10... Be6 {[%clk 0:04:49]} 11. Kb1
{[%clk 0:04:42]} 11... a6 {[%clk 0:04:46.4]} 12. g4 {[%clk 0:04:40.9]} 12... c5
{[%clk 0:04:45.8]} 13. Be3 {[%clk 0:04:39.7]} 13... Qa5 {[%clk 0:04:45.3]} 14.
h4 {[%clk 0:04:36]} 14... Bxg4 {[%clk 0:04:05.5]} 15. fxg4 {[%clk 0:04:33]}
15... Nxe4 {[%clk 0:04:04.6]} 16. Nxe4 {[%clk 0:04:29.2]} 16... Qxa2+ {[%clk
0:04:03.5]} 17. Kxa2 {[%clk 0:04:26.8]} 17... Rfe8 {[%clk 0:03:56.8]} 18. Nc3
{[%clk 0:04:21.5]} 18... b5 {[%clk 0:03:54.5]} 19. Bh6 {[%clk 0:04:17.9]} 19...
Be5 {[%clk 0:03:51.2]} 1-0

[Event "Live Chess"]
[Site "Chess.com"]
[Date "2024.06.02"]
[Round "-"]
[White "gobbles19"]
[Black "agamilewska"]
[Result "1-0"]
[WhiteElo "2219"]
[BlackElo "1770"]
[TimeControl "300"]
[EndTime "6:31:27 PDT"]
[Termination "gobbles19 won by checkmate"]

1. e4 {[%clk 0:04:57.2]} 1... e5 {[%clk 0:04:59.2]} 2. d4 {[%clk 0:04:55.2]}
2... exd4 {[%clk 0:04:58.2]} 3. c3 {[%clk 0:04:54.3]} 3... Nc6 {[%clk
0:04:57.2]} 4. Bc4 {[%clk 0:04:51]} 4... d5 {[%clk 0:04:56.3]} 5. exd5 {[%clk
0:04:44.9]} 5... Na5 {[%clk 0:04:45.1]} 6. Qa4+ {[%clk 0:04:36]} 6... c6 {[%clk
0:04:43.8]} 7. dxc6 {[%clk 0:04:34.3]} 7... Nxc6 {[%clk 0:04:41.3]} 8. Nf3
{[%clk 0:04:31.5]} 8... dxc3 {[%clk 0:04:39]} 9. Nxc3 {[%clk 0:04:30.2]} 9...
Bb4 {[%clk 0:04:32.2]} 10. O-O {[%clk 0:04:28.3]} 10... Bxc3 {[%clk 0:04:31.1]}
11. bxc3 {[%clk 0:04:24.8]} 11... Ne7 {[%clk 0:04:30.1]} 12. Ba3 {[%clk
0:04:20.1]} 12... O-O {[%clk 0:04:27.6]} 13. Rad1 {[%clk 0:04:18.1]} 13... Qb6
{[%clk 0:04:20.2]} 14. Rfe1 {[%clk 0:04:15.5]} 14... Re8 {[%clk 0:03:52.7]} 15.
Bxe7 {[%clk 0:04:11.4]} 15... Rxe7 {[%clk 0:03:46.6]} 16. Rxe7 {[%clk
0:04:09.7]} 16... Nxe7 {[%clk 0:03:45.7]} 17. Qe8# {[%clk 0:04:08.8]} 1-0

[Event "Live Chess"]
[Site "Chess.com"]
[Date "2024.06.02"]
[Round "-"]
[White "GEMdzq"]
[Black "Anareza_Firouzja"]
[Result "1-0"]
[WhiteElo "2301"]
[BlackElo "1881"]
[TimeControl "300"]
[EndTime "6:31:39 PDT"]
[Termination "GEMdzq won by resignation"]

1. e4 {[%clk 0:04:57.5]} 1... c5 {[%clk 0:04:58.5]} 2. d4 {[%clk 0:04:56.4]}
2... cxd4 {[%clk 0:04:57.1]} 3. c3 {[%clk 0:04:55.8]} 3... dxc3 {[%clk 0:04:57]}
4. Nxc3 {[%clk 0:04:55.1]} 4... Nc6 {[%clk 0:04:56.7]} 5. Bc4 {[%clk 0:04:54.3]}
5... e6 {[%clk 0:04:56.2]} 6. Nf3 {[%clk 0:04:53.4]} 6... Bb4 {[%clk 0:04:55.8]}
7. O-O {[%clk 0:04:51.6]} 7... Nge7 {[%clk 0:04:55.3]} 8. Bg5 {[%clk 0:04:49.6]}
8... h6 {[%clk 0:04:53.9]} 9. Bh4 {[%clk 0:04:45.1]} 9... Qc7 {[%clk 0:04:45.6]}
10. Nb5 {[%clk 0:04:40.2]} 10... Qb6 {[%clk 0:04:37.3]} 11. a3 {[%clk
0:04:35.6]} 11... Bc5 {[%clk 0:04:25.6]} 12. b4 {[%clk 0:04:31.9]} 1-0